fUSD/lending_fUSD_20240624
["ID","MTS","AMOUNT","RATE_DAILY","PERIOD"]
[330289021,1719234644622,-500.0,0.00019178,2]
[330289022,1719234644631,-500.0,0.00019178,2]
[330289023,1719234644640,-500.0,0.00019178,2]
[330289024,1719234644649,-500.0,0.00019178,2]
[330289025,1719234644659,-500.0,0.00019178,2]
[330289026,1719234644667,-500.0,0.00019178,2]
[330289027,1719234644677,-500.0,0.00019178,2]
[330289028,1719234644687,-500.0,0.00019178,2]
[330289029,1719234644696,-500.0,0.00019178,2]
[330289030,1719234644705,-500.0,0.00019178,2]
[330289031,1719234644714,-500.0,0.00019178,2]
[330289032,1719234644724,-500.0,0.00019178,2]
[330289033,1719234644733,-500.0,0.00019178,2]
[330289034,1719234644742,-500.0,0.00019178,2]
[330289035,1719234644752,-500.0,0.00019178,2]
[330289036,1719234644761,-500.0,0.00019178,2]
[330289037,1719234644770,-500.0,0.00019178,2]
[330289038,1719234644780,-500.0,0.00019178,2]
[330289039,1719234644789,-500.0,0.00019178,2]
[330289040,1719234644798,-721.78,0.00019178,2]
[330289041,1719234644808,-500.0,0.00019178,2]
[330289042,1719234644817,-500.0,0.00019178,2]
[330289043,1719234644826,-500.0,0.00019178,2]
[330289044,1719234644835,-500.0,0.00019178,2]
[330289045,1719234644845,-500.0,0.00019178,2]
[330289046,1719234644854,-500.0,0.00019178,2]
[330289047,1719234644863,-500.0,0.00019178,2]
[330289048,1719234644874,-500.0,0.00019178,2]
[330289049,1719234644883,-500.0,0.00019178,2]
[330289050,1719234644893,-554.50434377,0.00019178,2]
[330289051,1719234644902,-500.0,0.00019178,2]
[330289052,1719234644911,-500.0,0.00019178,2]
[330289053,1719234644921,-500.0,0.00019178,2]
[330289054,1719234644930,-500.0,0.00019178,2]
[330289055,1719234644939,-500.0,0.00019178,2]
[330289056,1719234644949,-500.0,0.00019178,2]
[330289057,1719234644958,-500.0,0.00019178,2]
[330289058,1719234644967,-500.0,0.00019178,2]
[330289059,1719234644977,-500.0,0.00019178,2]
[330289060,1719234644986,-500.0,0.00019178,2]
[330289061,1719234644996,-500.0,0.00019178,2]
[330289062,1719234645005,-961.17,0.00019178,2]
[330289063,1719234645014,-559.62,0.00019178,2]
[330289064,1719234645024,-500.0,0.00019178,2]
[330289065,1719234645034,-500.0,0.00019178,2]
[330289066,1719234645044,-500.0,0.00019178,2]
[330289067,1719234645053,-500.0,0.00019178,2]
[330289068,1719234645062,-500.0,0.00019178,2]
[330289069,1719234645072,-500.0,0.00019178,2]
[330289070,1719234645084,-500.0,0.00019178,2]
[330289071,1719234645105,-500.0,0.00019178,2]
[330289072,1719234645114,-500.0,0.00019178,2]
[330289073,1719234645125,-503.91,0.00019178,2]
[330289074,1719234645134,-500.0,0.00019178,2]
[330289075,1719234645144,-500.0,0.00019178,2]
[330289076,1719234645159,-501.66684308,0.00019178,2]
[330289077,1719234645170,-641.94,0.00019178,2]
[330289078,1719234645179,-500.0,0.00019178,2]
[330289079,1719234645188,-500.0,0.00019178,2]
[330289080,1719234645198,-946.9,0.00019178,2]
[330289081,1719234645208,-2789.32,0.00019178,2]
[330289082,1719234645217,-500.0,0.00019178,2]
[330289083,1719234645226,-500.0,0.00019178,2]
[330289084,1719234645236,-500.0,0.00019178,2]
[330289085,1719234645245,-1021.32,0.00019178,2]
[330289086,1719234645255,-500.0,0.00019178,2]
[330289087,1719234645264,-500.0,0.00019178,2]
[330289088,1719234645273,-231.673429,0.00019178,2]
[330289089,1719234645283,-500.0,0.00019178,2]
[330289090,1719234645292,-231.673429,0.00019178,2]
[330289091,1719234645302,-500.0,0.00019178,2]
[330289092,1719234645311,-609.74,0.00019178,2]
[330289093,1719234645320,-2129.68,0.00019178,2]
[330289094,1719234645329,-523.1,0.00019178,2]
[330289095,1719234645338,-500.0,0.00019178,2]
[330289096,1719234645348,-604.89,0.00019178,2]
[330289097,1719234645358,-500.0,0.00019178,2]
[330289098,1719234645367,-500.0,0.00019178,2]
[330289099,1719234645377,-518.22,0.00019178,2]
[330289100,1719234645386,-558.11,0.00019178,2]
[330289101,1719234645396,-539.45,0.00019178,2]
[330289102,1719234645406,-5685.35,0.00019178,2]
[330289103,1719234645415,-500.0,0.00019178,2]
[330289104,1719234645425,-8388.92,0.00019178,2]
[330289105,1719234645434,-500.0,0.00019178,2]
[330289106,1719234645443,-788.23,0.00019178,2]
[330289107,1719234645452,-500.0,0.00019178,2]
[330289108,1719234645462,-931.76,0.00019178,2]
[330289109,1719234645472,-500.0,0.00019178,2]
[330289110,1719234645481,-589.44,0.00019178,2]
[330289111,1719234645490,-500.0,0.00019178,2]
[330289112,1719234645500,-500.0,0.00019178,2]
[330289113,1719234645509,-500.0,0.00019178,2]
[330289114,1719234645523,-500.0,0.00019178,2]
[330289115,1719234645532,-552.26,0.00019178,2]
[330289116,1719234645542,-500.0,0.00019178,2]
[330289117,1719234645551,-598.81,0.00019178,2]
[330289118,1719234645560,-503.27,0.00019178,2]
[330289119,1719234645569,-500.0,0.00019178,2]
[330289120,1719234645578,-500.0,0.00019178,2]
[330289121,1719234645587,-515.94,0.00019178,2]
[330289122,1719234645598,-500.0,0.00019178,2]
[330289123,1719234645607,-1333.15,0.00019178,2]
[330289124,1719234645616,-180.65,0.00019178,2]
[330289125,1719234645626,-1076.06,0.00019178,2]
[330289126,1719234645635,-500.0,0.00019178,2]
[330289127,1719234645644,-500.0,0.00019178,2]
[330289128,1719234645653,-500.0,0.00019178,2]
[330289129,1719234645662,-243.33646963,0.00019178,2]
[330289130,1719234645671,-507.36,0.00019178,2]
[330289131,1719234645680,-500.0,0.00019178,2]
[330289132,1719234645689,-500.0,0.00019178,2]
[330289133,1719234645698,-1022.66,0.00019178,2]
[330289134,1719234645707,-500.0,0.00019178,2]
[330289135,1719234645716,-500.0,0.00019178,2]
[330289136,1719234645725,-4095.82,0.00019178,2]
[330289137,1719234645734,-500.0,0.00019178,2]
[330289138,1719234645743,-500.0,0.00019178,2]
[330289139,1719234645755,-670.27,0.00019178,2]
[330289140,1719234645764,-500.0,0.00019178,2]
[330289141,1719234645773,-587.18,0.00019178,2]
[330289142,1719234645782,-500.0,0.00019178,2]
[330289143,1719234645791,-500.0,0.00019178,2]
[330289144,1719234645800,-500.0,0.00019178,2]
[330289145,1719234645810,-500.0,0.00019178,2]
[330289146,1719234645819,-500.0,0.00019178,2]
[330289147,1719234645828,-1195.25,0.00019178,2]
[330289148,1719234645838,-599.34,0.00019178,2]
[330289149,1719234645847,-506.52722672,0.00019178,2]
[330289150,1719234645856,-833.51,0.00019178,2]
[330289151,1719234645865,-675.38,0.00019178,2]
[330289152,1719234645922,-500.0,0.00019178,2]
[330289153,1719234645931,-1029.66,0.00019178,2]
[330289154,1719234645940,-500.0,0.00019178,2]
[330289155,1719234645949,-500.0,0.00019178,2]
[330289156,1719234645959,-500.0,0.00019178,2]
[330289157,1719234645967,-599.32,0.00019178,2]
[330289158,1719234645976,-500.0,0.00019178,2]
[330289159,1719234645986,-751.48,0.00019178,2]
[330289160,1719234645995,-504.75,0.00019178,2]
[330289161,1719234646004,-622.88,0.00019178,2]
[330289162,1719234646014,-812.04,0.00019178,2]
[330289163,1719234646023,-500.0,0.00019178,2]
[330289164,1719234646032,-500.0,0.00019178,2]
[330289165,1719234646041,-500.0,0.00019178,2]
[330289166,1719234646050,-453.12198669,0.00019178,2]
[330289167,1719234646060,-1838.7,0.00019178,2]
[330289168,1719234646069,-500.0,0.00019178,2]
[330289169,1719234646079,-732.02,0.00019178,2]
[330289170,1719234646089,-500.0,0.00019178,2]
[330289171,1719234646100,-548.92,0.00019178,2]
[330289172,1719234646109,-267.659537,0.00019178,2]
[330289173,1719234646119,-500.0,0.00019178,2]
[330289174,1719234646131,-500.0,0.00019178,2]
[330289175,1719234646140,-500.0,0.00019178,2]
[330289176,1719234646151,-1104.05,0.00019178,2]
[330289177,1719234646160,-500.0,0.00019178,2]
[330289178,1719234646174,-500.0,0.00019178,2]
[330289179,1719234646193,-790.0,0.00019178,2]
[330289180,1719234646203,-500.0,0.00019178,2]
[330289181,1719234646212,-500.0,0.00019178,2]
[330289182,1719234646222,-950.44,0.00019178,2]
[330289183,1719234646231,-500.0,0.00019178,2]
[330289184,1719234646240,-775.48,0.00019178,2]
[330289185,1719234646250,-3276.0,0.00019178,2]
[330289186,1719234646260,-500.0,0.00019178,2]
[330289187,1719234646270,-713.29,0.00019178,2]
[330289188,1719234646279,-500.0,0.00019178,2]
[330289189,1719234646288,-500.0,0.00019178,2]
[330289190,1719234646298,-500.0,0.00019178,2]
[330289191,1719234646308,-500.0,0.00019178,2]
[330289192,1719234646318,-832.62,0.00019178,2]
[330289193,1719234646327,-803.86,0.00019178,2]
[330289194,1719234646337,-500.0,0.00019178,2]
[330289195,1719234646346,-500.0,0.00019178,2]
[330289196,1719234646355,-832.67,0.00019178,2]
[330289197,1719234646364,-997.41,0.00019178,2]
[330289198,1719234646375,-689.81,0.00019178,2]
[330289199,1719234646384,-500.0,0.00019178,2]
[330289200,1719234646393,-500.0,0.00019178,2]
[330289201,1719234646402,-500.0,0.00019178,2]
[330289202,1719234646412,-1136.57,0.00019178,2]
[330289203,1719234646422,-594.74,0.00019178,2]
[330289204,1719234646432,-500.0,0.00019178,2]
[330289205,1719234646451,-500.0,0.00019178,2]
[330289206,1719234646461,-500.0,0.00019178,2]
[330289207,1719234646471,-556.0,0.00019178,2]
[330289208,1719234646479,-500.0,0.00019178,2]
[330289209,1719234646488,-500.0,0.00019178,2]
[330289210,1719234646497,-500.0,0.00019178,2]
[330289211,1719234646506,-2120.74,0.00019178,2]
[330289212,1719234646516,-500.0,0.00019178,2]
[330289213,1719234646528,-518.58,0.00019178,2]
[330289214,1719234646537,-1028.46,0.00019178,2]
[330289215,1719234646546,-500.0,0.00019178,2]
[330289216,1719234646555,-170.059563,0.00019178,2]
[330289217,1719234646565,-500.0,0.00019178,2]
[330289218,1719234646574,-500.0,0.00019178,2]
[330289219,1719234646583,-747.27,0.00019178,2]
[330289220,1719234646592,-500.0,0.00019178,2]
[330289221,1719234646602,-622.5,0.00019178,2]
[330289222,1719234646614,-500.0,0.00019178,2]
[330289223,1719234646624,-1256.7,0.00019178,2]
[330289224,1719234646633,-170.059563,0.00019178,2]
[330289225,1719234646642,-500.0,0.00019178,2]
[330289226,1719234646651,-500.0,0.00019178,2]
[330289227,1719234646660,-1233.58,0.00019178,2]
[330289228,1719234646669,-1155.94,0.00019178,2]
[330289229,1719234646679,-500.0,0.00019178,2]
[330289230,1719234646688,-825.41,0.00019178,2]
[330289231,1719234646697,-1536.4,0.00019178,2]
[330289232,1719234646707,-500.0,0.00019178,2]
[330289233,1719234646716,-500.0,0.00019178,2]
[330289234,1719234646725,-616.11,0.00019178,2]
[330289235,1719234646734,-766.48,0.00019178,2]
[330289236,1719234646743,-500.0,0.00019178,2]
[330289237,1719234646756,-698.01,0.00019178,2]
[330289238,1719234646765,-1447.35,0.00019178,2]
[330289239,1719234646775,-1293.45,0.00019178,2]
[330289240,1719234646784,-1214.1,0.00019178,2]
[330289241,1719234646792,-500.0,0.00019178,2]
[330289242,1719234646802,-500.0,0.00019178,2]
[330289243,1719234646811,-500.0,0.00019178,2]
[330289244,1719234646820,-500.0,0.00019178,2]
[330289245,1719234646830,-500.0,0.00019178,2]
[330289246,1719234646839,-1161.02,0.00019178,2]
[330289247,1719234646848,-500.0,0.00019178,2]
[330289248,1719234646858,-546.3,0.00019178,2]
[330289249,1719234646867,-500.0,0.00019178,2]
[330289250,1719234646880,-500.0,0.00019178,2]
[330289251,1719234646889,-1083.99,0.00019178,2]
[330289252,1719234646902,-1624.6,0.00019178,2]
[330289253,1719234646912,-500.0,0.00019178,2]
[330289254,1719234646921,-1522.1,0.00019178,2]
[330289255,1719234646930,-500.0,0.00019178,2]
[330289256,1719234646939,-500.0,0.00019178,2]
[330289257,1719234646948,-746.16,0.00019178,2]
[330289258,1719234646958,-841.88,0.00019178,2]
[330289259,1719234646967,-1918.02,0.00019178,2]
[330289260,1719234646976,-1003.97,0.00019178,2]
[330289261,1719234646986,-500.0,0.00019178,2]
[330289262,1719234646995,-500.0,0.00019178,2]
[330289263,1719234647004,-500.0,0.00019178,2]
[330289264,1719234647014,-2470.72,0.00019178,2]
[330289265,1719234647023,-822.29,0.00019178,2]
[330289266,1719234647031,-1351.09,0.00019178,2]
[330289267,1719234647040,-1545.77,0.00019178,2]
[330289268,1719234647049,-1773.63,0.00019178,2]
[330289269,1719234647059,-1647.16,0.00019178,2]
[330289270,1719234647068,-500.0,0.00019178,2]
[330289271,1719234647077,-500.0,0.00019178,2]
[330289272,1719234647086,-536.58,0.00019178,2]
[330289273,1719234647095,-500.0,0.00019178,2]
[330289274,1719234647105,-627.83,0.00019178,2]
[330289275,1719234647114,-250.0,0.00019178,2]
[330289276,1719234647125,-301.57376504,0.00019178,2]
[330289277,1719234647134,-300.0,0.00019178,2]
[330289278,1719234647143,-300.0,0.00019178,2]
[330289279,1719234647152,-500.0,0.000192,7]
[330289280,1719234647162,-328.45118823,0.00019385,2]
[330289281,1719234647171,-64592.0,0.000194,2]
[330289282,1719234647179,-242.12454532,0.00019405,2]
[330289283,1719234647188,-529.80766427,0.00019433,2]
[330289284,1719234647197,-156.50742932,0.00019445,2]
[330289285,1719234647207,-528.0988798,0.00019451,2]
[330289286,1719234647216,-475.10495739,0.00019451,2]
[330289287,1719234647226,-155.0,0.00019451,2]
[330289288,1719234647235,-300.0,0.00019451,2]
[330289289,1719234647244,-500.0,0.00019452,4]
[330289290,1719234647253,-675.73,0.00019452,4]
[330289291,1719234647263,-500.0,0.00019452,4]
[330289292,1719234647271,-500.0,0.00019452,4]
[330289293,1719234647280,-500.0,0.00019452,4]
[330289294,1719234647290,-500.0,0.00019452,4]
[330289295,1719234647299,-890.58,0.00019452,4]
[330289296,1719234647308,-615.75,0.00019452,4]
[330289297,1719234647317,-207.34511249,0.00019452,4]
[330289298,1719234647326,-500.0,0.00019452,4]
[330289299,1719234647335,-500.0,0.00019452,4]
[330289300,1719234647344,-500.0,0.00019452,4]
[330289301,1719234647353,-500.0,0.00019452,4]
[330289302,1719234647362,-605.34,0.00019452,4]
[330289303,1719234647373,-500.0,0.00019452,4]
[330289304,1719234647382,-870.76,0.00019452,4]
[330289305,1719234647391,-500.0,0.00019452,4]
[330289306,1719234647401,-500.0,0.00019452,4]
[330289307,1719234647410,-500.0,0.00019452,4]
[330289308,1719234647419,-500.0,0.00019452,4]
[330289309,1719234647428,-500.0,0.00019452,4]
[330289310,1719234647437,-500.0,0.00019452,4]
[330289311,1719234647446,-601.49,0.00019452,4]
[330289312,1719234647455,-500.0,0.00019452,4]
[330289313,1719234647464,-812.19,0.00019452,4]
[330289314,1719234647473,-500.0,0.00019452,4]
[330289315,1719234647482,-925.86,0.00019452,4]
[330289316,1719234647491,-500.0,0.00019452,4]
[330289317,1719234647501,-611.19,0.00019452,4]
[330289318,1719234647509,-796.24,0.00019452,4]
[330289319,1719234647519,-500.0,0.00019452,4]
[330289320,1719234647533,-738.65,0.00019452,4]
[330289321,1719234647542,-765.19,0.00019452,4]
[330289322,1719234647550,-500.0,0.00019452,4]
[330289323,1719234647559,-500.0,0.00019452,4]
[330289324,1719234647570,-500.0,0.00019452,4]
[330289325,1719234647579,-206.79,0.00019452,4]
[330289326,1719234647588,-500.0,0.00019452,4]
[330289327,1719234647597,-500.0,0.00019452,4]
[330289328,1719234647608,-500.0,0.00019452,4]
[330289329,1719234647618,-500.0,0.00019452,4]
[330289330,1719234647627,-500.0,0.00019452,4]
[330289331,1719234647636,-500.0,0.00019452,4]
[330289332,1719234647645,-500.0,0.00019452,4]
[330289333,1719234647654,-500.0,0.00019452,4]
[330289334,1719234647662,-500.0,0.00019452,4]
[330289335,1719234647671,-203.4492523,0.00019452,4]
[330289336,1719234647680,-833.9,0.00019452,4]
[330289337,1719234647689,-500.0,0.00019452,4]
[330289338,1719234647699,-500.0,0.00019452,4]
[330289339,1719234647708,-360.85,0.00019452,4]
[330289340,1719234647717,-184.04,0.00019452,4]
[330289341,1719234647727,-500.0,0.00019452,4]
[330289342,1719234647736,-500.0,0.00019452,4]
[330289343,1719234647745,-500.0,0.00019452,4]
[330289344,1719234647755,-500.0,0.00019452,4]
[330289345,1719234647765,-500.0,0.00019452,4]
[330289346,1719234647774,-500.0,0.00019452,4]
[330289347,1719234647783,-510.71,0.00019452,4]
[330289348,1719234647792,-571.75,0.00019452,4]
[330289349,1719234647801,-896.69,0.00019452,4]
[330289350,1719234647810,-500.0,0.00019452,4]
[330289351,1719234647820,-500.0,0.00019452,4]
[330289352,1719234647829,-500.0,0.00019452,4]
[330289353,1719234647838,-500.0,0.00019452,4]
[330289354,1719234647847,-500.0,0.00019452,4]
[330289355,1719234647857,-500.0,0.00019452,4]
[330289356,1719234647866,-1002.68,0.00019452,4]
[330289357,1719234647878,-500.0,0.00019452,4]
[330289358,1719234647887,-500.0,0.00019452,4]
[330289359,1719234647896,-1386.44,0.00019452,4]
[330289360,1719234647905,-500.0,0.00019452,4]
[330289361,1719234647914,-500.0,0.00019452,4]
[330289362,1719234647924,-500.0,0.00019452,4]
[330289363,1719234647933,-500.0,0.00019452,4]
[330289364,1719234647943,-500.0,0.00019452,4]
[330289365,1719234647952,-500.0,0.00019452,4]
[330289366,1719234647961,-500.0,0.00019452,4]
[330289367,1719234647970,-500.0,0.00019452,4]
[330289368,1719234647979,-500.0,0.00019452,4]
[330289369,1719234647988,-500.0,0.00019452,4]
[330289370,1719234647998,-500.0,0.00019452,4]
[330289371,1719234648008,-500.0,0.00019452,4]
[330289372,1719234648017,-500.0,0.00019452,4]
[330289373,1719234648028,-500.0,0.00019452,4]
[330289374,1719234648037,-500.0,0.00019452,4]
[330289375,1719234648046,-500.0,0.00019452,4]
[330289376,1719234648056,-500.0,0.00019452,4]
[330289377,1719234648065,-500.0,0.00019452,4]
[330289378,1719234648074,-500.0,0.00019452,4]
[330289379,1719234648084,-510.58,0.00019452,4]
[330289380,1719234648093,-500.0,0.00019452,4]
[330289381,1719234648102,-500.0,0.00019452,4]
[330289382,1719234648111,-500.0,0.00019452,4]
[330289383,1719234648122,-500.0,0.00019452,4]
[330289384,1719234648131,-500.0,0.00019452,4]
[330289385,1719234648140,-500.0,0.00019452,4]
[330289386,1719234648151,-500.0,0.00019452,4]
[330289387,1719234648160,-389.16,0.00019452,4]
[330289388,1719234648170,-500.0,0.00019452,4]
[330289389,1719234648179,-500.0,0.00019452,4]
[330289390,1719234648188,-500.0,0.00019452,4]
[330289391,1719234648197,-500.0,0.00019452,4]
[330289392,1719234648206,-500.0,0.00019452,4]
[330289393,1719234648217,-500.0,0.00019452,4]
[330289394,1719234648232,-500.0,0.00019452,4]
[330289395,1719234648251,-500.0,0.00019452,4]
[330289396,1719234648260,-500.0,0.00019452,4]
[330289397,1719234648270,-610.4,0.00019452,4]
[330289398,1719234648279,-500.0,0.00019452,4]
[330289399,1719234648288,-500.0,0.00019452,4]
[330289400,1719234648297,-500.0,0.00019452,4]
[330289401,1719234648307,-500.0,0.00019452,4]
[330289402,1719234648316,-500.0,0.00019452,4]
[330289403,1719234648325,-578.19,0.00019452,4]
[330289404,1719234648335,-500.0,0.00019452,4]
[330289405,1719234648345,-500.0,0.00019452,4]
[330289406,1719234648354,-500.0,0.00019452,4]
[330289407,1719234648363,-500.0,0.00019452,4]
[330289408,1719234648374,-500.0,0.00019452,4]
[330289409,1719234648383,-500.0,0.00019452,4]
[330289410,1719234648392,-500.0,0.00019452,4]
[330289411,1719234648401,-500.0,0.00019452,4]
[330289412,1719234648410,-500.0,0.00019452,4]
[330289413,1719234648419,-500.0,0.00019452,4]
[330289414,1719234648427,-955.98,0.00019452,4]
[330289415,1719234648436,-500.0,0.00019452,4]
[330289416,1719234648445,-500.0,0.00019452,4]
[330289417,1719234648454,-500.0,0.00019452,4]
[330289418,1719234648463,-500.0,0.00019452,4]
[330289419,1719234648472,-500.0,0.00019452,4]
[330289420,1719234648481,-500.0,0.00019452,4]
[330289421,1719234648489,-500.0,0.00019452,4]
[330289422,1719234648498,-500.0,0.00019452,4]
[330289423,1719234648507,-500.0,0.00019452,4]
[330289424,1719234648517,-500.0,0.00019452,4]
[330289425,1719234648531,-500.0,0.00019452,4]
[330289426,1719234648540,-500.0,0.00019452,4]
[330289427,1719234648549,-500.0,0.00019452,4]
[330289428,1719234648558,-500.0,0.00019452,4]
[330289429,1719234648568,-500.0,0.00019452,4]
[330289430,1719234648578,-500.0,0.00019452,4]
[330289431,1719234648587,-500.0,0.00019452,4]
[330289432,1719234648596,-500.0,0.00019452,4]
[330289433,1719234648606,-500.0,0.00019452,4]
[330289434,1719234648616,-500.0,0.00019452,4]
[330289436,1719234648627,-500.0,0.00019452,4]
[330289437,1719234648636,-500.0,0.00019452,4]
[330289438,1719234648648,-500.0,0.00019452,4]
[330289439,1719234648663,-500.0,0.00019452,4]
[330289440,1719234648676,-500.0,0.00019452,4]
[330289441,1719234648686,-500.0,0.00019452,4]
[330289442,1719234648696,-721.78,0.00019452,4]
[330289443,1719234648705,-500.0,0.00019452,4]
[330289444,1719234648714,-500.0,0.00019452,4]
[330289445,1719234648723,-500.0,0.00019452,4]
[330289446,1719234648732,-500.0,0.00019452,4]
[330289447,1719234648741,-500.0,0.00019452,4]
[330289448,1719234648751,-500.0,0.00019452,4]
[330289449,1719234648760,-500.0,0.00019452,4]
[330289450,1719234648770,-500.0,0.00019452,4]
[330289451,1719234648780,-500.0,0.00019452,4]
[330289452,1719234648790,-500.0,0.00019452,4]
[330289453,1719234648800,-500.0,0.00019452,4]
[330289454,1719234648809,-500.0,0.00019452,4]
[330289455,1719234648818,-500.0,0.00019452,4]
[330289456,1719234648827,-500.0,0.00019452,4]
[330289457,1719234648836,-500.0,0.00019452,4]
[330289458,1719234648846,-500.0,0.00019452,4]
[330289459,1719234648855,-500.0,0.00019452,4]
[330289460,1719234648865,-500.0,0.00019452,4]
[330289461,1719234648876,-500.0,0.00019452,4]
[330289462,1719234648885,-961.17,0.00019452,4]
[330289463,1719234648895,-559.62,0.00019452,4]
[330289464,1719234648905,-500.0,0.00019452,4]
[330289465,1719234648914,-500.0,0.00019452,4]
[330289466,1719234648924,-500.0,0.00019452,4]
[330289467,1719234648933,-500.0,0.00019452,4]
[330289468,1719234648942,-500.0,0.00019452,4]
[330289469,1719234648951,-500.0,0.00019452,4]
[330289470,1719234648960,-500.0,0.00019452,4]
[330289471,1719234648969,-500.0,0.00019452,4]
[330289472,1719234648978,-503.91,0.00019452,4]
[330289473,1719234648988,-500.0,0.00019452,4]
[330289474,1719234648997,-500.0,0.00019452,4]
[330289475,1719234649006,-641.94,0.00019452,4]
[330289476,1719234649015,-500.0,0.00019452,4]
[330289477,1719234649025,-500.0,0.00019452,4]
[330289478,1719234649034,-946.9,0.00019452,4]
[330289479,1719234649043,-2789.32,0.00019452,4]
[330289480,1719234649052,-500.0,0.00019452,4]
[330289481,1719234649061,-500.0,0.00019452,4]
[330289482,1719234649071,-500.0,0.00019452,4]
[330289483,1719234649080,-1021.32,0.00019452,4]
[330289484,1719234649089,-500.0,0.00019452,4]
[330289485,1719234649099,-500.0,0.00019452,4]
[330289486,1719234649109,-231.673429,0.00019452,2]
[330289487,1719234649119,-500.0,0.00019452,4]
[330289488,1719234649129,-231.673429,0.00019452,2]
[330289489,1719234649138,-500.0,0.00019452,4]
[330289490,1719234649148,-609.74,0.00019452,4]
[330289491,1719234649157,-2129.68,0.00019452,4]
[330289492,1719234649167,-523.1,0.00019452,4]
[330289493,1719234649176,-500.0,0.00019452,4]
[330289494,1719234649185,-604.89,0.00019452,4]
[330289495,1719234649195,-500.0,0.00019452,4]
[330289496,1719234649205,-500.0,0.00019452,4]
[330289497,1719234649215,-518.22,0.00019452,4]
[330289498,1719234649227,-539.45,0.00019452,4]
[330289499,1719234649236,-5685.35,0.00019452,4]
[330289500,1719234649246,-500.0,0.00019452,4]
[330289501,1719234649255,-8388.92,0.00019452,4]
[330289502,1719234649264,-788.23,0.00019452,4]
[330289503,1719234649274,-931.76,0.00019452,4]
[330289504,1719234649283,-558.11,0.00019452,4]
[330289505,1719234649293,-500.0,0.00019452,4]
[330289506,1719234649302,-589.44,0.00019452,4]
[330289507,1719234649311,-500.0,0.00019452,4]
[330289508,1719234649321,-500.0,0.00019452,4]
[330289509,1719234649330,-500.0,0.00019452,4]
[330289510,1719234649340,-500.0,0.00019452,4]
[330289511,1719234649349,-552.26,0.00019452,4]
[330289512,1719234649359,-500.0,0.00019452,4]
[330289513,1719234649368,-598.81,0.00019452,4]
[330289514,1719234649382,-500.0,0.00019452,4]
[330289515,1719234649391,-500.0,0.00019452,4]
[330289516,1719234649400,-515.94,0.00019452,4]
[330289517,1719234649409,-500.0,0.00019452,4]
[330289518,1719234649420,-1333.15,0.00019452,4]
[330289519,1719234649429,-1076.06,0.00019452,4]
[330289520,1719234649438,-500.0,0.00019452,4]
[330289521,1719234649448,-500.0,0.00019452,4]